[Event "*** Titled Tuesday Blitz"]
[Site "Chess.com"]
[Date "2020.12.29"]
[Round "7"]
[White "KhamzinOlzhas"]
[Black "ajdemipopushi"]
[Result "0-1"]
[WhiteElo "2458"]
[BlackElo "2353"]
[TimeControl "180+1"]
[EndTime "11:17:54 PST"]
[Termination "ajdemipopushi won on time"]

1. d4 {[%clk 0:02:50.9]} 1... Nf6 {[%clk 0:02:58.8]} 2. c4 {[%clk 0:02:50.5]}
2... c5 {[%clk 0:02:59.2]} 3. d5 {[%clk 0:02:50.2]} 3... b5 {[%clk 0:02:59.9]}
4. cxb5 {[%clk 0:02:50.5]} 4... a6 {[%clk 0:03:00.5]} 5. f3 {[%clk 0:02:51]}
5... e6 {[%clk 0:02:59]} 6. e4 {[%clk 0:02:51]} 6... exd5 {[%clk 0:02:59.4]} 7.
e5 {[%clk 0:02:51.4]} 7... Qe7 {[%clk 0:02:59.9]} 8. Qe2 {[%clk 0:02:51.1]} 8...
Ng8 {[%clk 0:03:00.1]} 9. Nc3 {[%clk 0:02:50]} 9... Bb7 {[%clk 0:03:00]} 10. f4
{[%clk 0:02:49.8]} 10... c4 {[%clk 0:02:46.2]} 11. Nf3 {[%clk 0:02:47.4]} 11...
axb5 {[%clk 0:02:35]} 12. Nd4 {[%clk 0:02:38.9]} 12... Bc6 {[%clk 0:01:59.4]}
13. Nf5 {[%clk 0:02:11.1]} 13... Qc5 {[%clk 0:01:41.2]} 14. Be3 {[%clk
0:02:02.5]} 14... Qb4 {[%clk 0:01:40.6]} 15. a3 {[%clk 0:01:53.7]} 15... Qa5
{[%clk 0:01:39.3]} 16. Rc1 {[%clk 0:01:43.3]} 16... b4 {[%clk 0:01:35.2]} 17.
axb4 {[%clk 0:01:42.3]} 17... Bxb4 {[%clk 0:01:33.9]} 18. Nd6+ {[%clk
0:01:41.5]} 18... Bxd6 {[%clk 0:01:01]} 19. exd6 {[%clk 0:01:42.4]} 19... Kf8
{[%clk 0:00:55.4]} 20. Bd4 {[%clk 0:01:36.2]} 20... Na6 {[%clk 0:00:51.5]} 21.
Qg4 {[%clk 0:00:59.3]} 21... Re8+ {[%clk 0:00:37.5]} 22. Kf2 {[%clk 0:00:57.1]}
22... Nf6 {[%clk 0:00:36.6]} 23. Qg5 {[%clk 0:00:37.4]} 23... h6 {[%clk
0:00:29.2]} 24. Qh4 {[%clk 0:00:22.2]} 24... Ne4+ {[%clk 0:00:17.4]} 25. Nxe4
{[%clk 0:00:21.6]} 25... Rxe4 {[%clk 0:00:17.2]} 26. Bc3 {[%clk 0:00:19.6]}
26... Qc5+ {[%clk 0:00:15.4]} 27. Kg3 {[%clk 0:00:14.8]} 27... Qxd6 {[%clk
0:00:11.1]} 28. Qg4 {[%clk 0:00:09.1]} 28... d4 {[%clk 0:00:06]} 29. Bd2 {[%clk
0:00:07.2]} 29... d3 {[%clk 0:00:04.9]} 30. Re1 {[%clk 0:00:05.9]} 30... Qe6
{[%clk 0:00:03]} 31. Rxe4 {[%clk 0:00:04.7]} 31... Qxg4+ {[%clk 0:00:02.3]} 32.
Kxg4 {[%clk 0:00:04.5]} 32... Bxe4 {[%clk 0:00:03.1]} 33. h4 {[%clk 0:00:03.3]}
33... f5+ {[%clk 0:00:02]} 34. Kg3 {[%clk 0:00:02.9]} 34... Kf7 {[%clk
0:00:02.3]} 35. h5 {[%clk 0:00:03.8]} 35... Rb8 {[%clk 0:00:01.8]} 36. Bc3
{[%clk 0:00:04.7]} 36... Rb3 {[%clk 0:00:02.1]} 37. Rh4 {[%clk 0:00:04.5]} 37...
Nc5 {[%clk 0:00:03]} 38. Kf2 {[%clk 0:00:03.2]} 38... Na4 {[%clk 0:00:03.5]} 39.
Bd4 {[%clk 0:00:03.2]} 39... Nxb2 {[%clk 0:00:03.8]} 40. Rh3 {[%clk 0:00:03.5]}
40... c3 {[%clk 0:00:04.1]} 41. Bxd3 {[%clk 0:00:02.6]} 41... Nxd3+ {[%clk
0:00:04.3]} 42. Ke3 {[%clk 0:00:02.4]} 42... c2 {[%clk 0:00:04.7]} 43. Rh1
{[%clk 0:00:02.7]} 43... c1=Q+ {[%clk 0:00:05]} 44. Rxc1 {[%clk 0:00:03.2]}
44... Nxc1+ {[%clk 0:00:05.9]} 45. Kd2 {[%clk 0:00:03.4]} 45... Nd3 {[%clk
0:00:06.2]} 46. Ke2 {[%clk 0:00:04.3]} 46... Rb2+ {[%clk 0:00:06.5]} 47. Ke3
{[%clk 0:00:04.5]} 47... Rxg2 {[%clk 0:00:06]} 48. Be5 {[%clk 0:00:04.3]} 48...
Rg3+ {[%clk 0:00:06.2]} 49. Kd4 {[%clk 0:00:04.4]} 49... Nxe5 {[%clk 0:00:06.8]}
50. Kxe5 {[%clk 0:00:04.4]} 50... Rg4 {[%clk 0:00:07.3]} 51. Kd6 {[%clk
0:00:04.3]} 51... Rh4 {[%clk 0:00:07.5]} 52. Kc7 {[%clk 0:00:05.2]} 52... Rxf4
{[%clk 0:00:07.7]} 53. Kd8 {[%clk 0:00:06.1]} 53... d5 {[%clk 0:00:07.8]} 54.
Kd7 {[%clk 0:00:07]} 54... d4 {[%clk 0:00:08.4]} 55. Kd8 {[%clk 0:00:07.9]}
55... d3 {[%clk 0:00:09]} 0-1

[Event "*** Titled Tuesday Blitz"]
[Site "Chess.com"]
[Date "2020.12.29"]
[Round "7"]
[White "Piotrek1979"]
[Black "Msb2"]
[Result "0-1"]
[WhiteElo "2419"]
[BlackElo "2790"]
[TimeControl "180+1"]
[EndTime "11:17:57 PST"]
[Termination "Msb2 won by resignation"]

1. e4 {[%clk 0:03:00.9]} 1... e6 {[%clk 0:03:00.2]} 2. Nf3 {[%clk 0:02:59.8]}
2... d5 {[%clk 0:03:00.7]} 3. exd5 {[%clk 0:02:59.7]} 3... exd5 {[%clk
0:03:01.6]} 4. d4 {[%clk 0:02:59.7]} 4... Nc6 {[%clk 0:03:01.1]} 5. Bb5 {[%clk
0:02:58]} 5... Bd6 {[%clk 0:03:01.2]} 6. O-O {[%clk 0:02:57.1]} 6... Ne7 {[%clk
0:03:01.1]} 7. Bg5 {[%clk 0:02:53.5]} 7... f6 {[%clk 0:03:00.7]} 8. Bh4 {[%clk
0:02:52.2]} 8... Bg4 {[%clk 0:03:00.7]} 9. Bg3 {[%clk 0:02:50.2]} 9... O-O
{[%clk 0:02:58.5]} 10. c3 {[%clk 0:02:48.4]} 10... a6 {[%clk 0:02:54.1]} 11. Bd3
{[%clk 0:02:41.4]} 11... Qd7 {[%clk 0:02:52.1]} 12. Nbd2 {[%clk 0:02:39.9]}
12... Rae8 {[%clk 0:02:51.3]} 13. Qc2 {[%clk 0:02:38.7]} 13... Bf5 {[%clk
0:02:48.7]} 14. Rfe1 {[%clk 0:02:36.5]} 14... Bxd3 {[%clk 0:02:44.1]} 15. Qxd3
{[%clk 0:02:35.4]} 15... Nf5 {[%clk 0:02:44.7]} 16. b4 {[%clk 0:02:20.8]} 16...
Bxg3 {[%clk 0:02:39.8]} 17. hxg3 {[%clk 0:02:19.4]} 17... Nd6 {[%clk 0:02:40.1]}
18. a4 {[%clk 0:02:15]} 18... Rxe1+ {[%clk 0:02:37.4]} 19. Rxe1 {[%clk
0:02:13.6]} 19... Re8 {[%clk 0:02:38.3]} 20. Rxe8+ {[%clk 0:02:07.4]} 20... Qxe8
{[%clk 0:02:39.2]} 21. g4 {[%clk 0:02:05]} 21... Nd8 {[%clk 0:02:38.5]} 22. g5
{[%clk 0:02:03]} 22... fxg5 {[%clk 0:02:09.7]} 23. Nxg5 {[%clk 0:02:02.2]} 23...
Qh5 {[%clk 0:02:00.8]} 24. Ngf3 {[%clk 0:01:48.5]} 24... Ne6 {[%clk 0:01:52.7]}
25. Qe3 {[%clk 0:01:47.6]} 25... Qf5 {[%clk 0:01:42]} 26. Qe5 {[%clk 0:01:31.2]}
26... Qxe5 {[%clk 0:01:38.6]} 27. Nxe5 {[%clk 0:01:31.1]} 27... Nf7 {[%clk
0:01:33.1]} 28. Ndf3 {[%clk 0:01:26.7]} 28... Nxe5 {[%clk 0:01:25.8]} 29. Nxe5
{[%clk 0:01:27.6]} 29... h5 {[%clk 0:01:26.3]} 30. g3 {[%clk 0:01:21]} 30... g5
{[%clk 0:01:26.4]} 31. f3 {[%clk 0:01:18.9]} 31... Kg7 {[%clk 0:01:26.5]} 32.
Kf2 {[%clk 0:01:18.8]} 32... Kf6 {[%clk 0:01:20.7]} 33. a5 {[%clk 0:01:14.6]}
33... Ke7 {[%clk 0:01:12.8]} 34. Kg2 {[%clk 0:01:02.9]} 34... Ng7 {[%clk
0:01:08.6]} 35. Nd3 {[%clk 0:00:57.8]} 35... b6 {[%clk 0:01:03.9]} 36. b5 {[%clk
0:00:57.1]} 36... Kd7 {[%clk 0:00:51.7]} 37. bxa6 {[%clk 0:00:56.6]} 37... Kc8
{[%clk 0:00:52.2]} 38. axb6 {[%clk 0:00:55.2]} 38... cxb6 {[%clk 0:00:53.1]} 39.
Nb4 {[%clk 0:00:55.8]} 39... Kb8 {[%clk 0:00:47.2]} 40. Nc6+ {[%clk 0:00:48.1]}
40... Ka8 {[%clk 0:00:42.5]} 41. f4 {[%clk 0:00:44.8]} 41... g4 {[%clk
0:00:37.2]} 42. Ne7 {[%clk 0:00:42.7]} 42... Ka7 {[%clk 0:00:37]} 43. f5 {[%clk
0:00:42.9]} 43... Ne8 {[%clk 0:00:33]} 44. Nxd5 {[%clk 0:00:41.7]} 44... Kxa6
{[%clk 0:00:33.6]} 45. f6 {[%clk 0:00:41.4]} 45... Nd6 {[%clk 0:00:33.4]} 46. c4
{[%clk 0:00:39.9]} 46... Nf7 {[%clk 0:00:29.8]} 47. Nf4 {[%clk 0:00:38.2]} 47...
Ka5 {[%clk 0:00:29.5]} 48. Nd3 {[%clk 0:00:32.5]} 48... b5 {[%clk 0:00:15]} 49.
c5 {[%clk 0:00:29.6]} 49... b4 {[%clk 0:00:14.3]} 50. d5 {[%clk 0:00:29.6]}
50... b3 {[%clk 0:00:14.5]} 51. d6 {[%clk 0:00:16.7]} 51... Kb5 {[%clk 0:00:15]}
52. Kf2 {[%clk 0:00:16.9]} 52... Kc6 {[%clk 0:00:14.7]} 53. Ke3 {[%clk
0:00:16.2]} 53... Kd7 {[%clk 0:00:13.7]} 54. Nf4 {[%clk 0:00:12.7]} 54... b2
{[%clk 0:00:13.2]} 55. Nd5 {[%clk 0:00:07]} 55... b1=Q {[%clk 0:00:13.6]} 56.
Nb6+ {[%clk 0:00:06.9]} 56... Kc6 {[%clk 0:00:14.2]} 57. Nc4 {[%clk 0:00:05.7]}
57... Qc1+ {[%clk 0:00:13.5]} 58. Kd4 {[%clk 0:00:05.6]} 58... Qd1+ {[%clk
0:00:13.2]} 59. Ke4 {[%clk 0:00:05.7]} 59... Qd5+ {[%clk 0:00:12.9]} 0-1

[Event "*** Titled Tuesday Blitz"]
[Site "Chess.com"]
[Date "2020.12.29"]
[Round "7"]
[White "PavlovDanila"]
[Black "Macron20hTF1"]
[Result "1/2-1/2"]
[WhiteElo "2677"]
[BlackElo "2496"]
[TimeControl "180+1"]
[EndTime "11:17:59 PST"]
[Termination "Game drawn - insufficient material"]

1. e4 {[%clk 0:03:00.9]} 1... g6 {[%clk 0:02:58.1]} 2. d4 {[%clk 0:03:00.6]}
2... Bg7 {[%clk 0:02:58.8]} 3. Nc3 {[%clk 0:03:01.3]} 3... d6 {[%clk 0:02:59.4]}
4. Be3 {[%clk 0:03:00.6]} 4... a6 {[%clk 0:02:59.7]} 5. Qd2 {[%clk 0:03:00.3]}
5... b5 {[%clk 0:03:00.3]} 6. f3 {[%clk 0:03:00.7]} 6... Nd7 {[%clk 0:03:00.1]}
7. g4 {[%clk 0:03:00.1]} 7... Bb7 {[%clk 0:02:58.4]} 8. h4 {[%clk 0:02:59.6]}
8... h5 {[%clk 0:02:57.4]} 9. g5 {[%clk 0:02:59.6]} 9... e6 {[%clk 0:02:56.2]}
10. O-O-O {[%clk 0:02:59.5]} 10... Ne7 {[%clk 0:02:56.7]} 11. Nce2 {[%clk
0:02:54.9]} 11... O-O {[%clk 0:02:53.4]} 12. Ng3 {[%clk 0:02:55]} 12... d5
{[%clk 0:02:39]} 13. Bd3 {[%clk 0:02:51]} 13... c5 {[%clk 0:02:33.1]} 14. exd5
{[%clk 0:02:34.5]} 14... Nxd5 {[%clk 0:02:30.6]} 15. dxc5 {[%clk 0:02:31.3]}
15... Qc7 {[%clk 0:02:24.2]} 16. Ne4 {[%clk 0:02:30.9]} 16... Rac8 {[%clk
0:01:37.2]} 17. Rh3 {[%clk 0:02:04.3]} 17... Nxe3 {[%clk 0:01:31.4]} 18. Qxe3
{[%clk 0:02:03.9]} 18... Nxc5 {[%clk 0:01:31.9]} 19. Nxc5 {[%clk 0:02:04.1]}
19... Qxc5 {[%clk 0:01:32.7]} 20. Qxc5 {[%clk 0:02:04.5]} 20... Rxc5 {[%clk
0:01:33.6]} 21. Be4 {[%clk 0:02:05.2]} 21... Rfc8 {[%clk 0:01:28.4]} 22. Rh2
{[%clk 0:01:35.9]} 22... Bxe4 {[%clk 0:01:19.8]} 23. fxe4 {[%clk 0:01:36.1]}
23... Be5 {[%clk 0:01:19.4]} 24. Re2 {[%clk 0:01:36.4]} 24... Kf8 {[%clk
0:01:08.5]} 25. Nf3 {[%clk 0:01:35.5]} 25... Bf4+ {[%clk 0:00:59.5]} 26. Kb1
{[%clk 0:01:35.3]} 26... Ke7 {[%clk 0:00:59.6]} 27. Rd3 {[%clk 0:01:21.4]} 27...
Rd8 {[%clk 0:00:57.2]} 28. Rxd8 {[%clk 0:01:17.5]} 28... Kxd8 {[%clk 0:00:58.1]}
29. c3 {[%clk 0:01:17.1]} 29... b4 {[%clk 0:00:54.8]} 30. Kc2 {[%clk 0:01:15]}
30... bxc3 {[%clk 0:00:54.2]} 31. bxc3 {[%clk 0:01:15.9]} 31... Kc7 {[%clk
0:00:52.6]} 32. Kd3 {[%clk 0:01:01.1]} 32... e5 {[%clk 0:00:49]} 33. Rb2 {[%clk
0:00:51.9]} 33... Rc6 {[%clk 0:00:42.4]} 34. Rb1 {[%clk 0:00:41.2]} 34... Rd6+
{[%clk 0:00:38.3]} 35. Kc2 {[%clk 0:00:41.4]} 35... Rc6 {[%clk 0:00:31.7]} 36.
Rb4 {[%clk 0:00:39.8]} 36... f6 {[%clk 0:00:29.1]} 37. gxf6 {[%clk 0:00:24.8]}
37... Rxf6 {[%clk 0:00:30]} 38. Kd3 {[%clk 0:00:25.3]} 38... Bg3 {[%clk
0:00:28.8]} 39. Ke2 {[%clk 0:00:25.5]} 39... Rf4 {[%clk 0:00:25]} 40. Nxe5
{[%clk 0:00:20.6]} 40... Rxh4 {[%clk 0:00:15.2]} 41. Nxg6 {[%clk 0:00:20.2]}
41... Rh2+ {[%clk 0:00:15]} 42. Kf3 {[%clk 0:00:20.5]} 42... Be1 {[%clk
0:00:15.3]} 43. a4 {[%clk 0:00:14.9]} 43... Rc2 {[%clk 0:00:13.5]} 44. e5 {[%clk
0:00:12.5]} 44... Rxc3+ {[%clk 0:00:12.3]} 45. Kf4 {[%clk 0:00:13]} 45... Rf3+
{[%clk 0:00:11.7]} 46. Kxf3 {[%clk 0:00:13.4]} 46... Bxb4 {[%clk 0:00:12.2]} 47.
Kf4 {[%clk 0:00:12.9]} 47... Kd7 {[%clk 0:00:11.2]} 48. Kf5 {[%clk 0:00:11]}
48... a5 {[%clk 0:00:10.4]} 49. e6+ {[%clk 0:00:10.7]} 49... Kc6 {[%clk
0:00:10.3]} 50. Ne5+ {[%clk 0:00:09]} 50... Kd5 {[%clk 0:00:10.2]} 51. Nd7
{[%clk 0:00:07]} 51... h4 {[%clk 0:00:09.9]} 52. Nf6+ {[%clk 0:00:06.7]} 52...
Kd4 {[%clk 0:00:09.5]} 53. Kg4 {[%clk 0:00:04.6]} 53... Ke5 {[%clk 0:00:08.6]}
54. Nd7+ {[%clk 0:00:04.6]} 54... Kxe6 {[%clk 0:00:08.8]} 55. Nb8 {[%clk
0:00:05]} 55... Be1 {[%clk 0:00:06.9]} 56. Nc6 {[%clk 0:00:04.9]} 56... Kd5
{[%clk 0:00:07.3]} 57. Nxa5 {[%clk 0:00:05]} 57... Bxa5 {[%clk 0:00:06.9]} 58.
Kxh4 {[%clk 0:00:05.9]} 58... Kc4 {[%clk 0:00:07.6]} 59. Kg4 {[%clk 0:00:06]}
59... Kb3 {[%clk 0:00:08.5]} 60. Kf4 {[%clk 0:00:06.9]} 60... Kxa4 {[%clk
0:00:09.4]} 1/2-1/2

[Event "*** Titled Tuesday Blitz"]
[Site "Chess.com"]
[Date "2020.12.29"]
[Round "7"]
[White "lamomiablanca"]
[Black "BelaKis"]
[Result "1-0"]
[WhiteElo "2287"]
[BlackElo "2129"]
[TimeControl "180+1"]
[EndTime "11:18:00 PST"]
[Termination "lamomiablanca won by checkmate"]

1. e4 {[%clk 0:03:00.9]} 1... g6 {[%clk 0:02:56]} 2. d4 {[%clk 0:02:59.1]} 2...
Bg7 {[%clk 0:02:56.1]} 3. Nc3 {[%clk 0:02:58.1]} 3... c5 {[%clk 0:02:55.8]} 4.
d5 {[%clk 0:02:34.4]} 4... d6 {[%clk 0:02:54.6]} 5. Nf3 {[%clk 0:02:32.5]} 5...
Nf6 {[%clk 0:02:53.4]} 6. Bc4 {[%clk 0:02:30.8]} 6... O-O {[%clk 0:02:51.2]} 7.
O-O {[%clk 0:02:30]} 7... b5 {[%clk 0:02:28.8]} 8. Bxb5 {[%clk 0:02:28.4]} 8...
Ba6 {[%clk 0:02:28.8]} 9. Bxa6 {[%clk 0:02:27.6]} 9... Nxa6 {[%clk 0:02:29.7]}
10. Qe2 {[%clk 0:02:21.6]} 10... Qa5 {[%clk 0:02:28.9]} 11. Bd2 {[%clk
0:02:13.2]} 11... Rab8 {[%clk 0:02:27.7]} 12. b3 {[%clk 0:02:03.8]} 12... Nb4
{[%clk 0:01:58.3]} 13. Rfc1 {[%clk 0:01:31.2]} 13... Qa6 {[%clk 0:01:38.5]} 14.
Qxa6 {[%clk 0:01:25]} 14... Nxa6 {[%clk 0:01:39.4]} 15. a3 {[%clk 0:01:21.4]}
15... Nc7 {[%clk 0:01:33.2]} 16. Rab1 {[%clk 0:01:18.8]} 16... h6 {[%clk
0:01:28.2]} 17. Re1 {[%clk 0:01:15.6]} 17... Nd7 {[%clk 0:01:27.2]} 18. Na4
{[%clk 0:01:08.6]} 18... Nb5 {[%clk 0:01:23.6]} 19. Bc1 {[%clk 0:01:06.3]} 19...
Nb6 {[%clk 0:01:06.8]} 20. Nxb6 {[%clk 0:00:38.5]} 20... Rxb6 {[%clk 0:01:06.9]}
21. Bd2 {[%clk 0:00:37.6]} 21... Nxa3 {[%clk 0:01:03.5]} 22. Rbc1 {[%clk
0:00:37.6]} 22... Nb5 {[%clk 0:00:56.4]} 23. Red1 {[%clk 0:00:33.4]} 23... Ra8
{[%clk 0:00:49.1]} 24. Kf1 {[%clk 0:00:32.2]} 24... a5 {[%clk 0:00:40.7]} 25.
Ne1 {[%clk 0:00:25.9]} 25... Nc3 {[%clk 0:00:29.3]} 26. Bxc3 {[%clk 0:00:24.4]}
26... Bxc3 {[%clk 0:00:30.2]} 27. Nd3 {[%clk 0:00:23.9]} 27... a4 {[%clk
0:00:29.6]} 28. bxa4 {[%clk 0:00:23.1]} 28... Rxa4 {[%clk 0:00:30.5]} 29. f3
{[%clk 0:00:22.8]} 29... Ra2 {[%clk 0:00:27.3]} 30. Ne1 {[%clk 0:00:20.5]} 30...
Kg7 {[%clk 0:00:24.6]} 31. Rd3 {[%clk 0:00:18.5]} 31... Be5 {[%clk 0:00:24.2]}
32. g3 {[%clk 0:00:17.7]} 32... f5 {[%clk 0:00:21.4]} 33. exf5 {[%clk
0:00:17.1]} 33... gxf5 {[%clk 0:00:21.4]} 34. f4 {[%clk 0:00:17.6]} 34... Bf6
{[%clk 0:00:20]} 35. Ke2 {[%clk 0:00:17]} 35... h5 {[%clk 0:00:20.3]} 36. Nf3
{[%clk 0:00:17]} 36... Kg6 {[%clk 0:00:20]} 37. Nd2 {[%clk 0:00:17]} 37... Rbb2
{[%clk 0:00:19.1]} 38. Kd1 {[%clk 0:00:16.6]} 38... Rb4 {[%clk 0:00:18.3]} 39.
Ke2 {[%clk 0:00:14]} 39... Bd4 {[%clk 0:00:18.1]} 40. c3 {[%clk 0:00:12.8]}
40... Rc4 {[%clk 0:00:13.5]} 41. Kd1 {[%clk 0:00:10.2]} 41... Rxc3 {[%clk
0:00:12]} 42. Rdxc3 {[%clk 0:00:10]} 42... Bxc3 {[%clk 0:00:12.9]} 43. Rxc3
{[%clk 0:00:10.8]} 43... Kf6 {[%clk 0:00:12.7]} 44. Rc2 {[%clk 0:00:09.6]} 44...
Ra4 {[%clk 0:00:12.1]} 45. Ke2 {[%clk 0:00:09.6]} 45... Rd4 {[%clk 0:00:12.1]}
46. Nf3 {[%clk 0:00:07.9]} 46... Rxd5 {[%clk 0:00:12.5]} 47. Nh4 {[%clk
0:00:07.5]} 47... e5 {[%clk 0:00:12]} 48. Nf3 {[%clk 0:00:06.9]} 48... e4 {[%clk
0:00:12.2]} 49. Ng5 {[%clk 0:00:06.9]} 49... Rd4 {[%clk 0:00:11.9]} 50. Nh3
{[%clk 0:00:06.9]} 50... Rd3 {[%clk 0:00:11.4]} 51. Nf2 {[%clk 0:00:07]} 51...
d5 {[%clk 0:00:11.7]} 52. Nxd3 {[%clk 0:00:06.9]} 52... exd3+ {[%clk 0:00:12.6]}
53. Kxd3 {[%clk 0:00:07.8]} 53... c4+ {[%clk 0:00:12.5]} 54. Kd4 {[%clk
0:00:07.8]} 54... Ke6 {[%clk 0:00:13.4]} 55. Re2+ {[%clk 0:00:08.3]} 55... Kd6
{[%clk 0:00:14.3]} 56. Re5 {[%clk 0:00:09]} 56... c3 {[%clk 0:00:14.8]} 57.
Rxd5+ {[%clk 0:00:09.6]} 57... Ke6 {[%clk 0:00:15.4]} 58. Rc5 {[%clk 0:00:10]}
58... c2 {[%clk 0:00:16.3]} 59. Rxc2 {[%clk 0:00:10.7]} 59... h4 {[%clk
0:00:16.7]} 60. Rc6+ {[%clk 0:00:10.6]} 60... Kd7 {[%clk 0:00:16.4]} 61. Rf6
{[%clk 0:00:11]} 61... hxg3 {[%clk 0:00:17.2]} 62. hxg3 {[%clk 0:00:11.7]} 62...
Ke7 {[%clk 0:00:17.6]} 63. Rxf5 {[%clk 0:00:12.4]} 63... Ke6 {[%clk 0:00:18.5]}
64. g4 {[%clk 0:00:13]} 64... Ke7 {[%clk 0:00:18.5]} 65. Ke5 {[%clk 0:00:13.8]}
65... Kd7 {[%clk 0:00:18.6]} 66. g5 {[%clk 0:00:14.5]} 66... Kc6 {[%clk
0:00:19.5]} 67. g6 {[%clk 0:00:15.4]} 67... Kc5 {[%clk 0:00:19.8]} 68. g7 {[%clk
0:00:15.8]} 68... Kc4 {[%clk 0:00:20.7]} 69. g8=Q+ {[%clk 0:00:16.4]} 69... Kd3
{[%clk 0:00:21.6]} 70. Qd8+ {[%clk 0:00:16.5]} 70... Ke3 {[%clk 0:00:22.5]} 71.
Kf6 {[%clk 0:00:16.5]} 71... Kf3 {[%clk 0:00:23.4]} 72. Re5 {[%clk 0:00:15.9]}
72... Kg4 {[%clk 0:00:24.3]} 73. f5 {[%clk 0:00:15.9]} 73... Kf3 {[%clk
0:00:25.2]} 74. Qd3+ {[%clk 0:00:15.7]} 74... Kg4 {[%clk 0:00:26.1]} 75. Re4+
{[%clk 0:00:16.1]} 75... Kh5 {[%clk 0:00:25.9]} 76. Qh3# {[%clk 0:00:16.2]} 1-0

[Event "*** Titled Tuesday Blitz"]
[Site "Chess.com"]
[Date "2020.12.29"]
[Round "7"]
[White "StockholmMissile"]
[Black "UCantHandleDenker"]
[Result "1-0"]
[WhiteElo "2433"]
[BlackElo "2549"]
[TimeControl "180+1"]
[EndTime "11:18:04 PST"]
[Termination "StockholmMissile won on time"]

1. e4 {[%clk 0:03:00.9]} 1... d6 {[%clk 0:02:55.6]} 2. d4 {[%clk 0:02:58.9]}
2... Nf6 {[%clk 0:02:55.7]} 3. Nd2 {[%clk 0:02:58.7]} 3... g6 {[%clk 0:02:55.6]}
4. Ngf3 {[%clk 0:02:58.7]} 4... Bg7 {[%clk 0:02:55.7]} 5. Bb5+ {[%clk
0:02:58.7]} 5... c6 {[%clk 0:02:54.4]} 6. Bd3 {[%clk 0:02:59]} 6... O-O {[%clk
0:02:54.2]} 7. O-O {[%clk 0:02:59]} 7... c5 {[%clk 0:02:53.7]} 8. c3 {[%clk
0:02:58.2]} 8... cxd4 {[%clk 0:02:47.8]} 9. cxd4 {[%clk 0:02:58.1]} 9... Nc6
{[%clk 0:02:48.4]} 10. b3 {[%clk 0:02:48.4]} 10... Bg4 {[%clk 0:02:46.9]} 11.
Bb2 {[%clk 0:02:47.5]} 11... Nd7 {[%clk 0:02:42.1]} 12. h3 {[%clk 0:02:46.6]}
12... Bxf3 {[%clk 0:02:41.7]} 13. Nxf3 {[%clk 0:02:47.5]} 13... e5 {[%clk
0:02:41.7]} 14. d5 {[%clk 0:02:45.7]} 14... Ne7 {[%clk 0:02:39.8]} 15. Ba3
{[%clk 0:02:41.1]} 15... Qb6 {[%clk 0:02:25.2]} 16. Qd2 {[%clk 0:02:33.4]} 16...
Rfc8 {[%clk 0:02:19.8]} 17. Qb4 {[%clk 0:02:24.7]} 17... Nc5 {[%clk 0:02:15.5]}
18. Qxb6 {[%clk 0:02:03.6]} 18... axb6 {[%clk 0:02:14.6]} 19. Bxc5 {[%clk
0:02:03.7]} 19... Rxc5 {[%clk 0:02:05.5]} 20. Nd2 {[%clk 0:01:54.5]} 20... b5
{[%clk 0:01:57.3]} 21. b4 {[%clk 0:01:49]} 21... Rc3 {[%clk 0:01:32.5]} 22. Bxb5
{[%clk 0:01:44.5]} 22... Bh6 {[%clk 0:01:22]} 23. Nc4 {[%clk 0:01:42.1]} 23...
Nc8 {[%clk 0:01:22.3]} 24. a4 {[%clk 0:01:32.5]} 24... f5 {[%clk 0:01:01]} 25.
f3 {[%clk 0:01:31.3]} 25... Kf7 {[%clk 0:00:59.4]} 26. Ra3 {[%clk 0:01:24.4]}
26... Rc2 {[%clk 0:00:54.5]} 27. Rb1 {[%clk 0:00:51.2]} 27... Ke7 {[%clk
0:00:52.8]} 28. Rbb3 {[%clk 0:00:49.6]} 28... Na7 {[%clk 0:00:45.5]} 29. Nb6
{[%clk 0:00:35.6]} 29... Nxb5 {[%clk 0:00:40.2]} 30. axb5 {[%clk 0:00:27.5]}
30... Rxa3 {[%clk 0:00:38.9]} 31. Rxa3 {[%clk 0:00:28.4]} 31... Rb2 {[%clk
0:00:39.4]} 32. Kf1 {[%clk 0:00:15.5]} 32... Rxb4 {[%clk 0:00:34.1]} 33. Ra7
{[%clk 0:00:15]} 33... Be3 {[%clk 0:00:27.6]} 34. Rxb7+ {[%clk 0:00:14.6]} 34...
Kf6 {[%clk 0:00:23.3]} 35. Nc8 {[%clk 0:00:14.5]} 35... Bc5 {[%clk 0:00:19.3]}
36. b6 {[%clk 0:00:14.8]} 36... Rb1+ {[%clk 0:00:18.8]} 37. Ke2 {[%clk
0:00:14.8]} 37... Rb2+ {[%clk 0:00:19.2]} 38. Kd3 {[%clk 0:00:14.6]} 38... Rxg2
{[%clk 0:00:08.2]} 39. Rxh7 {[%clk 0:00:13.8]} 39... Rb2 {[%clk 0:00:07.1]} 40.
b7 {[%clk 0:00:11.5]} 40... Rb3+ {[%clk 0:00:07.4]} 41. Kc2 {[%clk 0:00:11.1]}
41... Rb5 {[%clk 0:00:06.8]} 42. Kc3 {[%clk 0:00:10.4]} 42... Rb1 {[%clk
0:00:06.5]} 43. Kc4 {[%clk 0:00:09.5]} 43... Rb4+ {[%clk 0:00:06.2]} 44. Kc3
{[%clk 0:00:09.8]} 44... Rb1 {[%clk 0:00:07.1]} 45. Rd7 {[%clk 0:00:08.4]} 45...
Rc1+ {[%clk 0:00:04.5]} 46. Kb3 {[%clk 0:00:07.3]} 46... Rb1+ {[%clk 0:00:04.5]}
47. Kc2 {[%clk 0:00:06.4]} 47... Rb5 {[%clk 0:00:04.7]} 48. Nxd6 {[%clk
0:00:06.1]} 48... Bxd6 {[%clk 0:00:04.5]} 49. Rxd6+ {[%clk 0:00:06.4]} 49... Kg5
{[%clk 0:00:05.4]} 50. Rd7 {[%clk 0:00:05.8]} 50... fxe4 {[%clk 0:00:05.7]} 51.
fxe4 {[%clk 0:00:05.7]} 51... Kf4 {[%clk 0:00:06.2]} 52. d6 {[%clk 0:00:05.9]}
52... Kxe4 {[%clk 0:00:05.4]} 53. Rc7 {[%clk 0:00:06.2]} 53... Kf4 {[%clk
0:00:03.1]} 54. d7 {[%clk 0:00:06.5]} 54... e4 {[%clk 0:00:03.6]} 55. d8=Q
{[%clk 0:00:06.9]} 55... e3 {[%clk 0:00:04.5]} 56. Qd4+ {[%clk 0:00:06.3]} 56...
Kf3 {[%clk 0:00:04.5]} 57. Rf7+ {[%clk 0:00:06.4]} 57... Kg3 {[%clk 0:00:04.8]}
58. Qxe3+ {[%clk 0:00:05.8]} 58... Kh4 {[%clk 0:00:05.1]} 59. Rh7+ {[%clk
0:00:04.9]} 1-0